fUSD/lending_fUSD_20250216
["ID","MTS","AMOUNT","RATE_DAILY","PERIOD"]
[353299664,1739742687331,-659.07,0.00011698,2]
[353299665,1739742687340,-676.16,0.00011698,2]
[353299666,1739742687349,-500.0,0.00011698,2]
[353299667,1739742687359,-616.55,0.00011698,2]
[353299668,1739742687369,-500.0,0.00011698,2]
[353299669,1739742687378,-500.0,0.00011698,2]
[353299670,1739742687389,-662.98,0.00011698,2]
[353299671,1739742687399,-681.63,0.00011698,2]
[353299672,1739742687409,-500.0,0.00011698,2]
[353299673,1739742687419,-1928.42,0.00011698,2]
[353299674,1739742687428,-768.53,0.00011698,2]
[353299675,1739742687438,-1472.35,0.00011698,2]
[353299676,1739742687448,-500.0,0.00011698,2]
[353299677,1739742687458,-500.0,0.00011698,2]
[353299678,1739742687467,-313.89740676,0.00011698,2]
[353299679,1739742687479,-771.18259324,0.00011698,2]
[353299680,1739742687489,-1097.37,0.00011698,2]
[353299681,1739742687499,-111.77326969,0.00011698,2]
[353299682,1739742687525,-483.55,0.00011205,2]
[353299683,1739742687534,-1420.97673031,0.00011698,2]
[353299684,1739742687544,-1575.69,0.00011698,2]
[353299685,1739742687553,-800.35,0.00011698,2]
[353299686,1739742687563,-1782.080865,0.00011698,2]
[353299687,1739742687575,-444.82004401,0.00011698,2]
[353299688,1739742687587,-469.41909099,0.00011698,2]
[353299689,1739742687597,-1998.61,0.00011698,2]
[353299690,1739742687608,-601.4,0.00011698,2]
[353299691,1739742687618,-846.39,0.00011698,2]
[353299692,1739742687627,-1249.29,0.00011698,2]
[353299693,1739742687638,-148.50090901,0.00011698,2]
[353299694,1739742687650,-351.49909099,0.00011698,2]
[353299695,1739742687660,-108.09077005,0.00011698,2]
[353299696,1739742687671,-391.90922995,0.00011698,2]
[353299697,1739742687681,-288.55079006,0.00011698,2]
[353299698,1739742691741,500.0,0.00010433,3]
[353299699,1739742695068,116330.264925,6.771e-05,7]
[353299700,1739742695687,149488.8289,6.771e-05,7]
[353299701,1739742953417,510.4,0.00010137,2]
[353299702,1739743027969,250.0,0.00010302,2]
[353299703,1739743142438,150.0,0.00010462,2]
[353299704,1739743215512,496.75,8.219e-05,2]
[353299705,1739743215728,496.75,0.0001048,2]
[353299706,1739743253417,1000.0,0.00010102,2]
[353299707,1739743363128,2000.0,0.00010117,2]
[353299715,1739743457909,152.0,8.85e-05,2]
[353299717,1739743483129,153.0,9.121e-05,2]
[353299718,1739743549615,340.59,0.00010048,2]
[353299719,1739743575108,550.0,0.0001,2]
[353299998,1739743652055,536.79,0.00010063,2]
[353299999,1739743690918,180.66,0.00010063,2]
[353300000,1739743787575,-225.31,0.0001055,2]
[353300001,1739743787598,-153.0,0.000106,2]
[353300002,1739743787620,-150.0,0.00010639,2]
[353300003,1739743787642,-150.0,0.00010663,2]
[353300004,1739743787666,-150.0,0.00010673,2]
[353300005,1739743787689,-150.0,0.00010719,2]
[353300006,1739743787712,-150.0,0.00010821,2]
[353300007,1739743787734,-594.13825676,0.00010822,2]
[353300008,1739743787757,-150.0,0.00010829,2]
[353300009,1739743787779,-3109.81673505,0.00010858,2]
[353300010,1739743787801,-150.0,0.00010899,2]
[353300011,1739743787822,-59981.83500819,0.000109,2]
[353300012,1739743831572,-158.0,0.000106,2]
[353300013,1739743831582,-156.0,0.000108,2]
[353300014,1739743831591,-172.375,0.000109,2]
[353300015,1739743831603,-320.09861389,0.000109,2]
[353300016,1739743831617,-1661.39843761,0.000109,2]
[353300017,1739743831702,-413.87648906,0.000109,2]
[353300018,1739743831715,-34274.43832224,0.000109,2]
[353300019,1739743831726,-91703.2440872,0.000109,2]
[353300020,1739743831736,-3109.81673496,0.00010923,2]
[353300021,1739743831747,-336.84534135,0.00010941,2]
[353300022,1739743831757,-500.0,0.00010958,2]
[353300023,1739743831766,-500.0,0.00010958,2]
[353300024,1739743831776,-500.0,0.00010958,2]
[353300025,1739743831786,-500.0,0.00010958,2]
[353300026,1739743831796,-500.0,0.00010958,2]
[353300027,1739743831805,-500.0,0.00010958,2]
[353300028,1739743831815,-163.41755503,0.00010958,7]
[353300029,1739743831825,-500.0,0.00010958,2]
[353300030,1739743831835,-500.0,0.00010958,2]
[353300031,1739743831845,-500.0,0.00010958,2]
[353300032,1739743831854,-500.0,0.00010958,2]
[353300033,1739743831864,-500.0,0.00010958,2]
[353300034,1739743831876,-500.0,0.00010958,2]
[353300035,1739743831886,-500.0,0.00010958,2]
[353300036,1739743831896,-500.0,0.00010958,2]
[353300037,1739743831905,-500.0,0.00010958,2]
[353300038,1739743831915,-500.0,0.00010958,2]
[353300039,1739743831926,-500.0,0.00010958,2]
[353300040,1739743831936,-500.0,0.00010958,2]
[353300041,1739743831946,-500.0,0.00010958,2]
[353300042,1739743831956,-500.0,0.00010958,2]
[353300043,1739743831966,-500.0,0.00010958,2]
[353300044,1739743831975,-544.21,0.00010958,2]
[353300045,1739743831985,-500.0,0.00010958,2]
[353300046,1739743831995,-500.0,0.00010958,2]
[353300047,1739743832005,-500.0,0.00010958,2]
[353300048,1739743832015,-500.0,0.00010958,2]
[353300049,1739743832025,-500.0,0.00010958,2]
[353300050,1739743832035,-500.0,0.00010958,2]
[353300051,1739743832044,-500.0,0.00010958,2]
[353300052,1739743832054,-500.0,0.00010958,2]
[353300054,1739743832064,-500.0,0.00010958,2]
[353300055,1739743832073,-500.0,0.00010958,2]
[353300056,1739743832084,-500.0,0.00010958,2]
[353300058,1739743832093,-500.0,0.00010958,2]
[353300059,1739743832104,-714.06,0.00010958,2]
[353300060,1739743832113,-500.0,0.00010958,2]
[353300062,1739743832123,-500.0,0.00010958,2]
[353300064,1739743832132,-500.0,0.00010958,2]
[353300066,1739743832142,-500.0,0.00010958,2]
[353300068,1739743832151,-500.0,0.00010958,2]
[353300070,1739743832161,-728.13,0.00010958,2]
[353300072,1739743832171,-500.0,0.00010958,2]
[353300075,1739743832181,-510.76,0.00010958,2]
[353300077,1739743832191,-500.0,0.00010958,2]
[353300078,1739743832201,-500.0,0.00010958,2]
[353300080,1739743832211,-500.0,0.00010958,2]
[353300083,1739743832220,-583.4,0.00010958,2]
[353300085,1739743832229,-500.0,0.00010958,2]
[353300086,1739743832239,-500.0,0.00010958,2]
[353300088,1739743832248,-500.0,0.00010958,2]
[353300090,1739743832262,-500.0,0.00010958,2]
[353300091,1739743832271,-500.0,0.00010958,2]
[353300092,1739743832281,-160.02,0.00010958,2]
[353300093,1739743832291,-500.0,0.00010958,2]
[353300094,1739743832301,-500.0,0.00010958,2]
[353300095,1739743832311,-500.0,0.00010958,2]
[353300096,1739743832321,-500.0,0.00010958,2]
[353300097,1739743832330,-500.0,0.00010958,2]
[353300098,1739743832340,-500.0,0.00010958,2]
[353300099,1739743832349,-500.0,0.00010958,2]
[353300100,1739743832359,-500.0,0.00010958,2]
[353300101,1739743832368,-500.0,0.00010958,2]
[353300102,1739743832378,-500.0,0.00010958,2]
[353300103,1739743832387,-500.0,0.00010958,2]
[353300104,1739743832396,-500.0,0.00010958,2]
[353300105,1739743832406,-500.0,0.00010958,2]
[353300106,1739743832415,-500.0,0.00010958,2]
[353300107,1739743832426,-500.0,0.00010958,2]
[353300108,1739743832435,-569.07,0.00010958,2]
[353300109,1739743832445,-500.0,0.00010958,2]
[353300110,1739743832456,-639.31,0.00010958,2]
[353300111,1739743832466,-500.0,0.00010958,2]
[353300112,1739743832476,-500.0,0.00010958,2]
[353300113,1739743832485,-500.0,0.00010958,2]
[353300114,1739743832495,-500.0,0.00010958,2]
[353300115,1739743832505,-500.0,0.00010958,2]
[353300116,1739743832515,-500.0,0.00010958,2]
[353300117,1739743832527,-500.0,0.00010958,2]
[353300118,1739743832536,-500.0,0.00010958,2]
[353300119,1739743832546,-500.0,0.00010958,2]
[353300120,1739743832556,-746.52,0.00010958,2]
[353300121,1739743832566,-500.0,0.00010958,2]
[353300122,1739743832575,-620.87,0.00010958,2]
[353300123,1739743832586,-500.0,0.00010958,2]
[353300124,1739743832596,-527.75,0.00010958,2]
[353300125,1739743832606,-703.13,0.00010958,2]
[353300126,1739743832616,-758.03,0.00010958,2]
[353300127,1739743832625,-500.0,0.00010958,2]
[353300128,1739743832635,-500.0,0.00010958,2]
[353300129,1739743832644,-500.0,0.00010958,2]
[353300130,1739743832653,-500.0,0.00010958,2]
[353300131,1739743832663,-500.0,0.00010958,2]
[353300132,1739743832672,-500.0,0.00010958,2]
[353300133,1739743832682,-500.0,0.00010958,2]
[353300134,1739743832692,-523.85,0.00010958,2]
[353300135,1739743832701,-500.0,0.00010958,2]
[353300136,1739743832711,-500.0,0.00010958,2]
[353300137,1739743832721,-500.0,0.00010958,2]
[353300138,1739743832730,-536.09,0.00010958,2]
[353300139,1739743832739,-500.0,0.00010958,2]
[353300140,1739743832749,-500.0,0.00010958,2]
[353300141,1739743832759,-640.13,0.00010958,2]
[353300142,1739743832768,-500.0,0.00010958,2]
[353300143,1739743832777,-828.92,0.00010958,2]
[353300144,1739743832787,-657.03,0.00010958,2]
[353300145,1739743832796,-1040.32,0.00010958,2]
[353300146,1739743832805,-500.0,0.00010958,2]
[353300147,1739743832815,-881.8,0.00010958,2]
[353300148,1739743832824,-500.0,0.00010958,2]
[353300149,1739743832833,-1378.98,0.00010958,2]
[353300150,1739743832843,-537.54,0.00010958,2]
[353300151,1739743832852,-500.0,0.00010958,2]
[353300152,1739743832861,-1632.01,0.00010958,2]
[353300153,1739743832871,-740.54,0.00010958,2]
[353300154,1739743832880,-500.0,0.00010958,2]
[353300155,1739743832890,-853.23,0.00010958,2]
[353300156,1739743832899,-543.84,0.00010958,2]
[353300157,1739743832909,-500.0,0.00010958,2]
[353300158,1739743832918,-618.51,0.00010958,2]
[353300159,1739743832928,-599.54,0.00010958,2]
[353300160,1739743832938,-500.0,0.00010958,2]
[353300161,1739743832947,-791.59,0.00010958,2]
[353300162,1739743832957,-858.87,0.00010958,2]
[353300163,1739743832966,-1165.86,0.00010958,2]
[353300164,1739743832975,-500.0,0.00010958,2]
[353300165,1739743832985,-500.0,0.00010958,2]
[353300166,1739743832994,-717.35,0.00010958,2]
[353300167,1739743833003,-500.0,0.00010958,2]
[353300168,1739743833012,-500.0,0.00010958,2]
[353300169,1739743833022,-807.84,0.00010958,2]
[353300170,1739743833032,-500.0,0.00010958,2]
[353300171,1739743833041,-894.1,0.00010958,2]
[353300172,1739743833333,-1443.39,0.00010958,2]
[353300173,1739743833343,-500.0,0.00010958,2]
[353300174,1739743833352,-652.28,0.00010958,2]
[353300175,1739743833362,-500.0,0.00010958,2]
[353300176,1739743833372,-573.79,0.00010958,2]
[353300177,1739743833381,-500.0,0.00010958,2]
[353300178,1739743833391,-500.0,0.00010958,2]
[353300179,1739743833401,-500.0,0.00010958,2]
[353300180,1739743833410,-1116.66,0.00010958,2]
[353300181,1739743833419,-500.0,0.00010958,2]
[353300182,1739743833430,-500.0,0.00010958,2]
[353300183,1739743833439,-500.0,0.00010958,2]
[353300184,1739743833448,-500.0,0.00010958,2]
[353300185,1739743833457,-500.0,0.00010958,2]
[353300186,1739743833467,-628.06,0.00010958,2]
[353300187,1739743833476,-452.4951629,0.00010958,2]
[353300188,1739743833485,-3109.81673496,0.00010988,2]
[353300189,1739743833494,-1268.06,0.00011,2]
[353300190,1739743833504,-772.02,0.00011,2]
[353300191,1739743833514,-500.0,0.00011039,2]
[353300192,1739743833530,-500.0,0.00011039,2]
[353300193,1739743833540,-500.0,0.00011039,2]
[353300194,1739743833551,-500.0,0.00011039,2]
[353300195,1739743833560,-832.06,0.00011039,2]
[353300196,1739743833570,-500.0,0.00011039,2]
[353300197,1739743833579,-500.0,0.00011039,2]
[353300198,1739743833589,-500.0,0.00011039,2]
[353300199,1739743833599,-500.0,0.00011039,2]
[353300200,1739743833608,-398.05377634,0.00011039,2]
[353300201,1739743833905,-101.94622366,0.00011039,2]
[353300202,1739743833914,-500.0,0.00011039,2]
[353300203,1739743833923,-500.0,0.00011039,2]
[353300204,1739743833933,-500.0,0.00011039,2]
[353300205,1739743833943,-500.0,0.00011039,2]
[353300206,1739743833952,-500.0,0.00011039,2]
[353300207,1739743833962,-500.0,0.00011039,2]
[353300208,1739743833972,-500.0,0.00011039,2]
[353300209,1739743833982,-500.0,0.00011039,2]
[353300210,1739743833992,-500.0,0.00011039,2]
[353300211,1739743834002,-500.0,0.00011039,2]
[353300212,1739743834012,-500.0,0.00011039,2]
[353300213,1739743834021,-500.0,0.00011039,2]
[353300214,1739743834030,-500.0,0.00011039,2]
[353300215,1739743834040,-500.0,0.00011039,2]
[353300216,1739743834049,-500.0,0.00011039,2]
[353300217,1739743834059,-500.0,0.00011039,2]
[353300218,1739743834069,-500.0,0.00011039,2]
[353300219,1739743834078,-566.04,0.00011039,2]
[353300220,1739743834088,-500.0,0.00011039,2]
[353300221,1739743834097,-500.0,0.00011039,2]
[353300222,1739743834106,-500.0,0.00011039,2]
[353300223,1739743834115,-500.0,0.00011039,2]
[353300224,1739743834125,-500.0,0.00011039,2]
[353300225,1739743834134,-500.0,0.00011039,2]
[353300226,1739743834144,-500.0,0.00011039,2]
[353300227,1739743834154,-555.22,0.00011039,2]
[353300228,1739743834164,-500.0,0.00011039,2]
[353300229,1739743834173,-500.0,0.00011039,2]
[353300230,1739743834184,-500.0,0.00011039,2]
[353300231,1739743834193,-500.0,0.00011039,2]
[353300232,1739743834202,-500.0,0.00011039,2]
[353300233,1739743834212,-500.0,0.00011039,2]
[353300234,1739743834221,-500.0,0.00011039,2]
[353300235,1739743834231,-500.0,0.00011039,2]
[353300236,1739743834241,-542.71,0.00011039,2]
[353300237,1739743834250,-500.0,0.00011039,2]
[353300238,1739743834259,-500.0,0.00011039,2]
[353300239,1739743834269,-519.55,0.00011039,2]
[353300240,1739743834278,-156.075971,0.00011039,2]
[353300241,1739743834288,-500.0,0.00011039,2]
[353300242,1739743834297,-500.0,0.00011039,2]
[353300243,1739743834307,-500.0,0.00011039,2]
[353300244,1739743834317,-545.36,0.00011039,2]
[353300245,1739743834326,-537.82,0.00011039,2]
[353300246,1739743834335,-500.0,0.00011039,2]
[353300247,1739743834344,-500.0,0.00011039,2]
[353300248,1739743834354,-244.48,0.00011039,2]
[353300249,1739743834364,-500.0,0.00011039,2]
[353300250,1739743834373,-428.619564,0.00011039,2]
[353300251,1739743834383,-500.0,0.00011039,2]
[353300252,1739743834393,-500.0,0.00011039,2]
[353300253,1739743834403,-500.0,0.00011039,2]
[353300254,1739743834412,-605.506852,0.00011039,2]
[353300255,1739743834421,-500.0,0.00011039,2]
[353300256,1739743834430,-500.0,0.00011039,2]
[353300257,1739743834439,-500.0,0.00011039,2]
[353300258,1739743834449,-161.28165,0.00011039,2]
[353300259,1739743834458,-500.0,0.00011039,2]
[353300260,1739743834468,-500.0,0.00011039,2]
[353300261,1739743834477,-500.0,0.00011039,2]
[353300262,1739743834487,-500.0,0.00011039,2]
[353300263,1739743834497,-500.0,0.00011039,2]
[353300264,1739743834506,-180.88046982,0.00011039,2]
[353300265,1739743834516,-500.0,0.00011039,2]
[353300266,1739743834529,-500.0,0.00011039,2]
[353300267,1739743834539,-885.61,0.00011039,2]
[353300268,1739743834549,-500.0,0.00011039,2]
[353300269,1739743834558,-500.0,0.00011039,2]
[353300270,1739743834568,-500.0,0.00011039,2]
[353300271,1739743834577,-500.0,0.00011039,2]
[353300272,1739743834587,-500.0,0.00011039,2]
[353300273,1739743834596,-216.65,0.00011039,2]
[353300274,1739743834606,-611.27,0.00011039,2]
[353300275,1739743834616,-500.0,0.00011039,2]
[353300276,1739743834626,-500.0,0.00011039,2]
[353300277,1739743834636,-551.58,0.00011039,2]
[353300278,1739743834646,-500.0,0.00011039,2]
[353300279,1739743834655,-500.0,0.00011039,2]
[353300280,1739743834665,-500.0,0.00011039,2]
[353300281,1739743834675,-500.0,0.00011039,2]
[353300282,1739743834684,-500.0,0.00011039,2]
[353300283,1739743834694,-500.0,0.00011039,2]
[353300284,1739743834704,-660.26,0.00011039,2]
[353300285,1739743834713,-500.0,0.00011039,2]
[353300286,1739743834723,-593.26,0.00011039,2]
[353300287,1739743834732,-500.0,0.00011039,2]
[353300288,1739743834741,-500.0,0.00011039,2]
[353300289,1739743834751,-500.0,0.00011039,2]
[353300290,1739743834761,-553.94,0.00011039,2]
[353300291,1739743834770,-500.0,0.00011039,2]
[353300292,1739743834780,-500.0,0.00011039,2]
[353300293,1739743834790,-500.0,0.00011039,2]
[353300294,1739743834800,-500.0,0.00011039,2]
[353300295,1739743834809,-500.0,0.00011039,2]
[353300296,1739743834819,-500.0,0.00011039,2]
[353300297,1739743834829,-565.94,0.00011039,2]
[353300298,1739743834839,-500.0,0.00011039,2]
[353300299,1739743834848,-500.0,0.00011039,2]
[353300300,1739743834858,-500.0,0.00011039,2]
[353300301,1739743834867,-500.0,0.00011039,2]
[353300302,1739743834876,-776.79,0.00011039,2]
[353300303,1739743834886,-673.88,0.00011039,2]
[353300304,1739743834895,-500.0,0.00011039,2]
[353300305,1739743834905,-540.05001284,0.00011039,2]
[353300306,1739743834914,-500.0,0.00011039,2]
[353300307,1739743834924,-500.0,0.00011039,2]
[353300308,1739743834934,-500.0,0.00011039,2]
[353300309,1739743834943,-500.0,0.00011039,2]
[353300310,1739743834961,-500.0,0.00011039,2]
[353300311,1739743834972,-500.0,0.00011039,2]
[353300312,1739743834982,-500.0,0.00011039,2]
[353300313,1739743834993,-500.0,0.00011039,2]
[353300314,1739743835003,-603.97,0.00011039,2]
[353300315,1739743835012,-500.0,0.00011039,2]
[353300316,1739743835022,-500.0,0.00011039,2]
[353300317,1739743835032,-500.0,0.00011039,2]
[353300318,1739743835041,-662.07,0.00011039,2]
[353300319,1739743835051,-500.0,0.00011039,2]
[353300320,1739743835061,-500.0,0.00011039,2]
[353300321,1739743835071,-500.0,0.00011039,2]
[353300322,1739743835080,-500.0,0.00011039,2]
[353300323,1739743835090,-543.38281123,0.00011039,2]
[353300324,1739743835100,-584.92,0.00011039,2]
[353300325,1739743835110,-500.0,0.00011039,2]
[353300326,1739743835119,-500.0,0.00011039,2]
[353300327,1739743835129,-1652.52,0.00011039,2]
[353300328,1739743835139,-500.0,0.00011039,2]
[353300329,1739743835148,-500.0,0.00011039,2]
[353300330,1739743835158,-67.43853733,0.00011039,2]
[353300331,1739743835175,-641.72146267,0.00011039,2]
[353300332,1739743835185,-274.85208838,0.00011039,2]
[353300333,1739743835195,-500.0,0.00011039,2]
[353300334,1739743835204,-1084.76,0.00011039,2]
[353300335,1739743835214,-548.66643861,0.00011039,2]
[353300336,1739743835226,-474.07356139,0.00011039,2]
[353300337,1739743835236,-500.0,0.00011039,2]
[353300338,1739743835246,-500.0,0.00011039,2]
[353300339,1739743835255,-862.95,0.00011039,2]
[353300340,1739743835265,-500.0,0.00011039,2]
[353300341,1739743835275,-500.0,0.00011039,2]
[353300342,1739743835284,-2109.33,0.00011039,2]
[353300343,1739743835294,-500.0,0.00011039,2]
[353300344,1739743835303,-500.0,0.00011039,2]
[353300345,1739743835313,-659.1,0.00011039,2]
[353300346,1739743835322,-500.0,0.00011039,2]
[353300347,1739743835331,-607.53783829,0.00011039,2]
[353300348,1739743835340,-796.43,0.00011039,2]
[353300349,1739743835350,-500.0,0.00011039,2]
[353300350,1739743835359,-1070.81,0.00011039,2]
[353300351,1739743835368,-676.0,0.00011039,2]
[353300352,1739743835378,-500.0,0.00011039,2]
[353300353,1739743835387,-366.61687497,0.00011039,2]
[353300354,1739743835397,-1331.97,0.00011039,2]
[353300355,1739743835406,-500.0,0.00011039,2]
[353300356,1739743835415,-500.0,0.00011039,2]
[353300357,1739743835425,-500.0,0.00011039,2]
[353300358,1739743835435,-955.73,0.00011039,2]
[353300359,1739743835444,-500.0,0.00011039,2]
[353300360,1739743835454,-512.48,0.00011039,2]
[353300361,1739743835463,-500.0,0.00011039,2]
[353300362,1739743835472,-1388.19,0.00011039,2]
[353300363,1739743835482,-3526.87,0.00011039,2]
[353300364,1739743835491,-793.3,0.00011039,2]
[353300365,1739743835501,-839.11,0.00011039,2]
[353300366,1739743835510,-632.97,0.00011039,2]
[353300367,1739743835521,-928.41,0.00011039,2]
[353300368,1739743835532,-500.0,0.00011039,2]
[353300369,1739743835541,-947.29,0.00011039,2]
[353300370,1739743835551,-500.0,0.00011039,2]
[353300371,1739743835560,-604.69,0.00011039,2]
[353300372,1739743835570,-504.08719617,0.00011039,2]
[353300373,1739743835580,-500.0,0.00011039,2]
[353300374,1739743835589,-500.0,0.00011039,2]
[353300375,1739743835599,-500.0,0.00011039,2]
[353300376,1739743835609,-500.0,0.00011039,2]
[353300377,1739743835618,-1004.66,0.00011039,2]
[353300378,1739743835628,-930.09,0.00011039,2]
[353300379,1739743835637,-1090.64,0.00011039,2]
[353300380,1739743835646,-506.83,0.00011039,2]
[353300381,1739743835655,-500.0,0.00011039,2]
[353300382,1739743835665,-500.0,0.00011039,2]
[353300383,1739743835674,-500.0,0.00011039,2]
[353300384,1739743835685,-500.0,0.00011039,2]
[353300385,1739743835695,-552.02,0.00011039,2]
[353300386,1739743835704,-500.0,0.00011039,2]
[353300387,1739743835713,-3080.91,0.00011039,2]
[353300388,1739743835723,-500.0,0.00011039,2]
[353300389,1739743835733,-557.45,0.00011039,2]
[353300390,1739743835742,-836.96,0.00011039,2]
[353300391,1739743835751,-609.6,0.00011039,2]
[353300392,1739743835761,-500.0,0.00011039,2]
[353300393,1739743835770,-500.0,0.00011039,2]
[353300394,1739743835779,-500.0,0.00011039,2]
[353300395,1739743835789,-500.0,0.00011039,2]
[353300396,1739743835798,-788.37,0.00011039,2]
[353300397,1739743835807,-500.0,0.00011039,2]
[353300398,1739743835817,-500.0,0.00011039,2]
[353300399,1739743835826,-535.91,0.00011039,2]
[353300400,1739743835835,-500.0,0.00011039,2]
[353300401,1739743835844,-1029.76,0.00011039,2]
[353300402,1739743835854,-500.0,0.00011039,2]
[353300403,1739743835863,-500.0,0.00011039,2]
[353300404,1739743835872,-500.0,0.00011039,2]
[353300405,1739743835882,-757.55,0.00011039,2]
[353300406,1739743835891,-500.0,0.00011039,2]
[353300407,1739743835900,-1207.77,0.00011039,2]
[353300408,1739743835910,-993.67,0.00011039,2]
[353300409,1739743835919,-500.0,0.00011039,2]
[353300410,1739743835929,-500.0,0.00011039,2]
[353300411,1739743835939,-883.43,0.00011039,2]
[353300412,1739743835949,-1193.44,0.00011039,2]
[353300413,1739743835959,-500.0,0.00011039,2]
[353300414,1739743835969,-1120.23,0.00011039,2]
[353300415,1739743835979,-500.0,0.00011039,2]
[353300416,1739743835987,-605.7617102,0.00011039,2]
[353300417,1739743835997,-1029.53,0.00011039,2]
[353300418,1739743836006,-500.0,0.00011039,2]
[353300419,1739743836016,-745.24,0.00011039,2]
[353300420,1739743836025,-2299.91,0.00011039,2]
[353300421,1739743836034,-500.0,0.00011039,2]
[353300422,1739743836043,-1170.51,0.00011039,2]
[353300423,1739743836052,-500.0,0.00011039,2]
[353300424,1739743836061,-500.0,0.00011039,2]
[353300425,1739743836070,-500.0,0.00011039,2]
[353300426,1739743836080,-1124.91,0.00011039,2]
[353300427,1739743836089,-211.19287489,0.00011039,2]
[353300428,1739743836099,-500.0,0.00011039,2]
[353300429,1739743836108,-500.0,0.00011039,2]
[353300430,1739743836117,-500.0,0.00011039,2]
[353300431,1739743836127,-632.96,0.00011039,2]
[353300432,1739743836136,-1572.85,0.00011039,2]
[353300433,1739743836146,-1256.66,0.00011039,2]
[353300434,1739743836156,-500.0,0.00011039,2]
[353300435,1739743836165,-511.05778762,0.00011039,2]
[353300436,1739743836175,-500.0,0.00011039,2]
[353300437,1739743836184,-500.0,0.00011039,2]
[353300438,1739743836193,-500.0,0.00011039,2]
[353300439,1739743836202,-500.0,0.00011039,2]
[353300440,1739743836212,-500.0,0.00011039,2]
[353300441,1739743836220,-526.13,0.00011039,2]
[353300442,1739743836230,-1051.04,0.00011039,2]
[353300443,1739743836239,-500.0,0.00011039,2]
[353300444,1739743836249,-916.19,0.00011039,2]
[353300445,1739743836258,-500.0,0.00011039,2]
[353300446,1739743836268,-500.0,0.00011039,2]
[353300447,1739743836277,-1373.28,0.00011039,2]
[353300448,1739743836286,-500.0,0.00011039,2]
[353300449,1739743836296,-500.0,0.00011039,2]
[353300450,1739743836306,-670.74,0.00011039,2]
[353300451,1739743836315,-500.0,0.00011039,2]
[353300452,1739743836324,-3030.67,0.00011039,2]
[353300453,1739743836334,-500.0,0.00011039,2]
[353300454,1739743836343,-500.0,0.00011039,2]
[353300455,1739743836353,-558.69,0.00011039,2]
[353300456,1739743836365,-500.0,0.00011039,2]
[353300457,1739743836375,-1287.49,0.00011039,2]
[353300458,1739743836386,-2285.4,0.00011039,2]
[353300459,1739743836395,-962.38,0.00011039,2]
[353300460,1739743836404,-500.0,0.00011039,2]
[353300461,1739743836414,-500.0,0.00011039,2]
[353300462,1739743836423,-500.0,0.00011039,2]
[353300463,1739743836433,-500.0,0.00011039,2]
[353300464,1739743836442,-500.0,0.00011039,2]
[353300465,1739743836452,-919.68,0.00011039,2]
[353300466,1739743836461,-500.0,0.00011039,2]